Cogmind - Beta 14 @@@ ROGUE MODE // 2024.10.04 @ 23:25:36 Player: Daffa0360 Result: Destroyed by P5-FLN(R) with Subdweller Laser Performance ------------- Evolutions (0) 0 Regions Visited (2) 400 Robots Destroyed (24) 120 Value Destroyed (502) 502 Prototype IDs (0) 0 Alien Tech Used (0) 0 Bonus (0) 0 TOTAL SCORE: 1022 Bonus ------- None Cogmind --------- Core Integrity 0/250 Matter 266/300 Energy 250/250 System Corruption 2% Temperature Cool (6) Movement Rolling (90) Location -10/Subcaves Parts ------- > --- POWER (1) -------- Ion Engine > --- PROPULSION (2) --- Wheel Compact Wheel > --- UTILITY (2) ------ Small Storage Unit Improved Terrain Scanner > --- WEAPON (2) ------- Heavy Assault Rifle Barrage Gun > --- INVENTORY (8) ---- Ion Engine Subdweller Monowheel Signal Interpreter Seismic Detector Scrap Shield Hacking Suite Grenade Launcher Peak State ------------ > --- POWER ------------ Ion Engine > --- PROPULSION ------- Wheel Compact Wheel > --- UTILITY ---------- Small Storage Unit Improved Terrain Scanner > --- WEAPON ----------- Heavy Assault Rifle Barrage Gun > --- INVENTORY -------- Ion Engine Subdweller Monowheel Signal Interpreter Seismic Detector Scrap Shield Hacking Suite Grenade Launcher [Rating: 13] Favorites ----------- Power Ion Engine Engine Ion Engine Propulsion Light Treads Treads Light Treads Leg Aluminum Leg Wheel Wheel Utility Small Storage Unit Device Sensor Array Storage Small Storage Unit Hackware Hacking Suite Protection Medium Armor Plating Weapon Light Assault Rifle Energy Gun EM Pulse Gun Ballistic Gun Light Assault Rifle Launcher Grenade Launcher Build | -11 -10 -10 ------- Run | Yrd Mat Sub Slots Evolved . | . . . Power . | . . . Propulsion . | . . . Utility . | . . . Weapon . | . . . Parts Attached 29 | 2 21 6 Power 2 | . 1 1 Engine 2 | . 1 1 Core . | . . . Reactor . | . . . Propulsion 9 | 2 6 1 Treads 4 | 1 3 . Leg . | . . . Wheel 5 | 1 3 1 Hover . | . . . Flight . | . . . Utility 7 | . 5 2 Device 3 | . 1 2 Storage 2 | . 2 . Processor . | . . . Hackware 1 | . 1 . Protection 1 | . 1 . Artifact . | . . . Weapon 11 | . 9 2 Energy Gun 3 | . 3 . Energy Cannon . | . . . Ballistic Gun 5 | . 4 1 Ballistic Cannon . | . . . Launcher 3 | . 2 1 Special Weapon . | . . . Impact Weapon . | . . . Slashing Weapon . | . . . Piercing Weapon . | . . . Special Melee Weapon . | . . . Unidentified Prototypes . | . . . Parts Lost 5 | . 1 4 Power . | . . . Propulsion 1 | . . 1 Utility 2 | . . 2 Weapon 2 | . 1 1 Highest Loss Streak 2 | . 1 2 To Critical Strikes . | . . . Average Slot Usage (%) 92 | . 92 92 Engine 13 | . 13 14 Treads 11 | . 13 7 Wheel 14 | . 13 16 Device 2 | . . 9 Storage 13 | . 13 14 Hackware 5 | . 7 . Energy Gun 7 | . 9 2 Ballistic Gun 15 | . 13 21 Launcher 4 | . 4 4 Peak Build Rating 13 | 7 11 13 Average Rating 8 | 6 8 10 On Entrance 7 | 6 6 10 Naked Turns 2 | . 2 . Heaviest Build 22 | 12 22 22 Greatest Support 26 | 20 20 26 Greatest Overweight (x) 2 | 1 2 1 Average Overweight (x) . | . . . Largest Inventory Capacity 8 | 8 8 8 Average Capacity 7 | 8 7 8 Most Carried 8 | 8 8 8 Average Carried 7 | 6 6 7 Final Capacity 8 | 8 8 8 Final Carried 8 | 6 8 8 Class Distribution -------------------- 100% | Mutant Dominant Class ---------------- Mutant | -10/Materials Mutant | -10/Subcaves Resources | -11 -10 -10 ----------- Run | Yrd Mat Sub Matter Collected 724 | 230 285 209 Remotely . | . . . Salvage Created 573 | 80 334 159 Parts 50 | 8 27 15 Haulers Intercepted . | . . . Recyclers Shooed 1 | . 1 . Parts Field Recycled . | . . . Retrieved Matter . | . . . Parts Self-Destructed 18 | . . 18 Prevented . | . . . Kills | -11 -10 -10 ------- Run | Yrd Mat Sub Combat Hostiles Destroyed 17 | . 12 5 Guns 7 | . 5 2 AOE 10 | . 7 3 Classes Destroyed 6 | 1 4 1 Tunneler 4 | 4 . . Recycler 1 | . 1 . Operator 2 | . 2 . Swarmer 8 | . 8 . Grunt 4 | . 4 . Subdweller 5 | . . 5 Best Kill Streak 4 | 4 3 3 Combat Bots Only 3 | . 3 3 Max Kills in Single Turn 3 | 1 3 2 Gunslinging . | . . . Exploded 3 | . 3 2 Melee . | . . . Uniques/NPCs Destroyed . | . . . Combat | -11 -10 -10 -------- Run | Yrd Mat Sub Hostile Shots Fired 97 | . 65 32 Missed 28 | . 19 9 Damage Taken 1104 | . 458 646 Core 259 | . 80 179 Absorbed by Shields . | . . . Regen/Repaired (Parts) 29 | . 29 . Core Remaining (%) 100 | 100 . . Volleys Fired 80 | 14 41 25 Largest 2 | 2 2 2 Hottest 63 | 60 60 63 Shots Fired 135 | 28 65 42 Gun 127 | 28 62 37 Cannon . | . . . Launcher 8 | . 3 5 Special . | . . . Kinetic 84 | 14 37 33 Thermal 25 | 14 11 . Explosive 8 | . 3 5 Electromagnetic 18 | . 14 4 Robot Hit Streak 21 | 8 6 21 Robot Miss Streak 3 | 3 3 2 Penetration Max . | . . . Secondary Targets 1 | . 1 . Max Gunslinging Chain 1 | . 1 . Shots Hit Robots 87 | 17 40 30 Core Hits 37 | 6 21 10 Critical Kills . | . . . Critical Parts Destroyed . | . . . Critical Strikes . | . . . Melee Attacks . | . . . Impact . | . . . Slashing . | . . . Piercing . | . . . Sneak Attacks . | . . . Combat Hostiles . | . . . Follow-up Attacks . | . . . Damage Inflicted 1534 | 183 770 581 Guns 929 | 183 342 404 Cannons . | . . . Explosions 605 | . 428 177 Melee . | . . . Ramming . | . . . Kinetic 658 | 93 193 372 Thermal 175 | 90 85 . Explosive 565 | . 388 177 Electromagnetic 136 | . 104 32 Impact . | . . . Slashing . | . . . Piercing . | . . . Highest Corruption 2 | . 2 2 Average Corruption 2 | . 2 2 Corruption Purged . | . . . Corruption Blocked . | . . . Effects 17 | . 9 8 Message Errors 3 | . . 3 Matter Fused 6 | . 4 2 Heat Flow Errors 1 | . 1 . Energy Discharges 2 | . 1 1 Parts Rejected 1 | . 1 . Misfires 1 | . 1 . Alerts 3 | . 1 2 Overload Shots . | . . . Overflow Damage 9 | . 9 . Projectiles . | . . . Explosions 9 | . 9 . Melee . | . . . Knockbacks . | . . . Impact . | . . . Kinetic . | . . . Secondary . | . . . Self-Inflicted Damage 69 | . 60 9 Shots 3 | . 2 1 Rammed . | . . . Targets Rammed . | . . . Kicked . | . . . Crushed . | . . . Highest Temperature 232 | 40 232 . Average Temperature 32 | 17 38 . Received Heat Transfer 138 | . 72 66 Siege Activations . | . . . Robots Corrupted . | . . . Combat Hostiles . | . . . Parts Fried . | . . . Impact Corruptions . | . . . Robots Melted . | . . . Combat Hostiles . | . . . Parts Melted . | . . . Heat Transferred 300 | 200 100 . Parts Sabotaged . | . . . Parts Stolen . | . . . Parts Stripped . | . . . Power Chain Reactions 1 | . 1 . Alert | -11 -10 -10 ------- Run | Yrd Mat Sub Peak Influence 231 | 20 231 . Initial 13 | . 13 . Average 78 | 7 82 . Maximum Alert Level 1 | . 1 . Low Security (%) 94 | 100 94 . Level 1 5 | . 5 . Level 2 . | . . . Level 3 . | . . . Level 4 . | . . . Level 5 . | . . . High Security . | . . . Max Security . | . . . Squads Dispatched 3 | . 3 . Investigation 1 | . 1 . Extermination . | . . . Reinforcement 2 | . 2 . Assault . | . . . Garrison . | . . . Intercept . | . . . Searches Triggered . | . . . Construction Impeded . | . . . Haulers Reinforced . | . . . Active Scanning Responses . | . . . Cargo Convoy Interrupts . | . . . Stealth | -11 -10 -10 --------- Run | Yrd Mat Sub Distress Signals 1 | . 1 . Communications Jammed . | . . . Distress Signals . | . . . Times Spotted 36 | . 26 10 Peak Tracking Total 4 | . 4 3 Tactical Retreats 2 | . 1 1 Traps | -11 -10 -10 ------- Run | Yrd Mat Sub Traps Triggered 5 | . 5 . Indirectly . | . . . Trap Hack Attempts . | . . . Triggered . | . . . Disarmed . | . . . Reprogrammed . | . . . Reused . | . . . Traps Extracted . | . . . Installed . | . . . Triggered . | . . . Machines | -11 -10 -10 ---------- Run | Yrd Mat Sub Machines Disabled 2 | . 2 . Max in Single Turn 1 | . 1 . Machines Repaired . | . . . Machines Dismantled . | . . . Machines Sabotaged . | . . . Overloaded Fab Kills . | . . . Hacking | -11 -10 -10 --------- Run | Yrd Mat Sub Machines Accessed 8 | . 7 1 Terminals 6 | . 6 . Fabricators . | . . . Repair Stations 1 | . 1 . Recycling Units . | . . . Scanalyzers . | . . . Garrison Access . | . . . Total Hacks 23 | . 19 4 Successful 17 | . 13 4 Failed 6 | . 6 . Catastrophic . | . . . Database Lockouts . | . . . Manual 16 | . 16 . Terminals 17 | . 17 . Fabricators . | . . . Repair Stations 2 | . 2 . Recycling Units . | . . . Scanalyzers . | . . . Garrison Access . | . . . Terminal Hacks 5 | . 1 4 Record 4 | . . 4 Alert Level 1 | . 1 . Fabricator Hacks . | . . . Repair Station Hacks 2 | . 2 . Scan Component 1 | . 1 . Repair 1 | . 1 . Recycling Unit Hacks . | . . . Scanalyzer . | . . . Garrison Access Hacks . | . . . Unauthorized Hacks 10 | . 10 . Terminals 10 | . 10 . Botnet 4 | . 4 . Operators 1 | . 1 . Skim 5 | . 5 . Fabricators . | . . . Repair Stations . | . . . Recycling Units . | . . . Scanalyzers . | . . . Garrison Access . | . . . Data Cores Recovered . | . . . Used . | . . . Hacking Detections 6 | . 6 . Full Trace Events . | . . . Feedback Events . | . . . Feedback Blocked . | . . . Robot Schematics Acquired . | . . . Robots Built . | . . . Authchips . | . . . Time . | . . . Total Robot Build Rating . | . . . Part Schematics Acquired . | . . . Parts Built . | . . . Authchips . | . . . Time . | . . . Total Part Build Rating . | . . . Parts Repaired 1 | . 1 . Time 26 | . 26 . Parts Recycled . | . . . Recycled Matter . | . . . Retrieved Matter . | . . . Retrieved Components . | . . . Parts Scanalyzed . | . . . Part Schematics Acquired . | . . . Parts Damaged . | . . . Bothacking | -11 -10 -10 ------------ Run | Yrd Mat Sub Used RIF Installer . | . . . Robots Hacked . | . . . Non-combat . | . . . Combat . | . . . Robot Hacks Applied . | . . . Relay Couplers Released . | . . . Fabnet Peak Effective % . | . . . Robots Rewired . | . . . Allies Hacked . | . . . Hacks Repelled . | . . . Allies | -11 -10 -10 -------- Run | Yrd Mat Sub Total Allies . | . . . Largest Group . | . . . Highest-Rated Group . | . . . Highest-Rated Ally . | . . . Total Orders . | . . . Ally Attacks . | . . . Total Damage . | . . . Kills . | . . . Allies Corrupted . | . . . Allies Melted . | . . . Intel | -11 -10 -10 ------- Run | Yrd Mat Sub Robot Analysis Total . | . . . Derelict Logs Recovered 1 | . . 1 Drone Launches . | . . . Drone Recoveries . | . . . Exploration | -11 -10 -10 ------------- Run | Yrd Mat Sub Turns Passed 2156 | 86 1444 626 Spaces Moved 1268 | 37 751 480 Core 10 | . 10 . Treads 204 | . 204 . Legs 28 | 28 . . Wheels 1026 | 9 537 480 Hover . | . . . Flight . | . . . Fastest Speed 50 | 95 50 90 Average Speed 110 | 113 113 105 Slowest Speed 160 | 120 160 115 Overloaded Moves . | . . . Propulsion Burnouts . | . . . Robots Hopped . | . . . Cave-ins Triggered . | . . . Exploration Rate (%) 40 | 3 97 21 Regions Visited 2 Branch Regions 1 Pre-discovered Areas 2 | . 1 1 Known Exits Taken 1 | . 1 . Unknown Exits Taken 1 | 1 . . Scrap Searched 3 | . . 3 Spaces Dug 3 | . . 3 Terrain Destroyed 61 | . 28 33 Melee . | . . . Projectile . | . . . AOE 61 | . 28 33 Terrain Rammed . | . . . Walls Destroyed . | . . . Machines Disabled . | . . . Actions | -11 -10 -10 --------- Run | Yrd Mat Sub Total 1896 | 56 1284 556 Wait 491 | . 449 42 Move 1266 | 36 750 480 Hop . | . . . Pick Up 18 | 2 13 3 Fast Attach 6 | . 6 . Attach 12 | 2 6 4 Detach . | . . . Swap 11 | . 9 2 Drop 12 | 2 10 . Fire 80 | 14 41 25 Melee . | . . . Ram . | . . . Kick . | . . . Crush . | . . . Escape Stasis . | . . . Rewire . | . . . Trap . | . . . Miscellaneous . | . . . Route ------- -11/Scrapyard -10/Materials (discovered 5 exits: [*Mat x3] / [*Min] / *Sub) -10/Subcaves (discovered 3 exits: Mat x2 / Rec) History --------- Turn | Location | Event 1 | -11/Scrapyard | Discovered new exit (range 2) 87 | -11/Scrapyard | Entered Materials 285 | -10/Materials | Discovered new exit (range 16) 314 | -10/Materials | Build established: Mutant 532 | -10/Materials | Discovered new exit (range 8) 882 | -10/Materials | Discovered new exit (range 9) 925 | -10/Materials | Repaired Sml. Storage Unit 1222 | -10/Materials | Discovered new exit (range 15) 1321 | -10/Materials | Learned 4 Subcaves zone layouts 1350 | -10/Materials | Identified exit to Subcaves 1350 | -10/Materials | Learned location of 1 exit from Materials 1369 | -10/Materials | Learned location of Mines (-10) 1377 | -10/Materials | Learned 4 Subcaves zone layouts 1403 | -10/Materials | Learned location of 2 exits from Subcaves 1531 | -10/Materials | Entered Subcaves 1532 | -10/Subcaves | Identified exit to Materials 1533 | -10/Subcaves | Identified exit to Recycling 1590 | -10/Subcaves | Ambushed by Subdwellers from Twisted Machinery 1661 | -10/Subcaves | Learned Materials stockpile data 1671 | -10/Subcaves | Visited Clippyterm 1674 | -10/Subcaves | Learned location of Section 7 (-2) 1839 | -10/Subcaves | Disturbed a concealed Subdweller 1840 | -10/Subcaves | Core integrity fell below 50% 2067 | -10/Subcaves | Core integrity fell below 20% 2157 | -10/Subcaves | Destroyed by P5-FLN(R) with Subdweller Laser Last Messages --------------- 01863_ Found Sub. Power Source. 01863_ Found Sub. Laser. 01863_ Found 70 Matter. 01864_ Acquired 45 matter. 01871_ Acquired Sub. Monowheel. 01968_ Subatomizers dissect the Sub. Power Source, destroying it. 01978_ Subatomizers dissect the Sub. Monowheel. 02027_ Sensor Array destroyed. 02028_ W2-4D2(R) destroyed. 02031_ Acquired 16 matter. 02035_ Acquired 10 matter. 02036_ Acquired 7 matter. 02038_ Acquired Scrap Shield. 02043_ Acquired 8 matter. 02065_ 7O PKM:M JUBUH GKTYQIA#FBMYISRAYL 02108_ Subatomizers dissect the Sub. Optics. 02113_ System corrupted: Matter fused (-8). 02121_ Subatomizers dissect the Sub. Optics. 02134_ J1-FV0(u) tweaks Twisted Machinery. Map ----- +----------------------------------------------------+ | ?????????????????????????????## #? ????? | | ?????????????????????????????# #??? #?????? | | ?????????????????????????????# ###? #?????? | | ?????????????????????????????# ## # #??????? | | ????????????#??????????####### ## #??# # | | ???????????????????????# # # ## #??##### | | ??????????????????????## ### # #??????? | | #?????????????????????# # ##?###### #??????? | | ??????????????????????## #######???????####??????? | | ??????????????????????# #???????????????????????? | | ??????????????????????## ##??????????????????????? | | ??????????????????????# #??????????????????????? | | ######????????????##### #??????????????????????? | | #######???????# # ##??????????????????????? | | &#& # ## ####????## & #???????????????????????? | | # #????# !%!# #???????????????????????? | | & # ###?### *####?????????#?????????????? | | # ## ###" #?????????????????????????? | | #### # ##?????????????????????????? | | ???## ###??????????????????????????? | | ????# #?????????????#??????????????? | | ????## #????#???????????????????????? | | ?????## & ##?????####?????????????#????? | | ?????# [ %! ####### #??????????????????? | | ?????# R ##??????????????????? | | ?????## R @ #???????????????????? | | ??????## %[ ### # ###?????????????????? | | ???????# * #?##### # ###???#????#??????? | | ???????#### ###????# #???????????#???? | | ??????????#########??????# ##########?#????? | | ?????????????????#?????#?# # ## # """""#??#???? | | ?????????????#???????????##### """"##?????? | | ??????????????????????#??????# """ #?????? | | ??????????????????#?#????#?#?#### ##" """????? | | ????????????????????????????????######?# """"???? | | ??????#???????????????????????#?????????#####????? | | ?????????????????????????????????????????????????? | | ?????????????????????????????????????????????????? | | ???????????????????##??#????????????????????#????? | | ?????????????????????????????????????????????????? | | ??????????????????????#??????????#??????????????#? | | ?????????????????????????????????????????????????? | | ?????????????????????#???????????????????????????? | | ????????????????????????????????????#????????????? | | ??????????????????????????????#??????????????????? | | ?????????????????????????????????????????????????? | | ?????????????????????????????????????????????????? | | ?????????????????????????????????????????????????? | | ?????????????????????????????????????????????????? | | ?????????????????????????????????????????????????? | +----------------------------------------------------+ Best States ------------- Heat Dissipation 25 Energy Generation 10 Energy Capacity 250 Matter Stores 300 Matter Capacity 300 Sight Range 16 Robot Scan Range 14 Terrain Scan Range 16 Terrain Scan Density 10 Armor Coverage 225 Evasion (%) 55 Recoil Reduction 1 Offensive Hacking 10 Item Schematics ----------------- None Robot Schematics ------------------ None Fabricated ------------ Nothing Alien Tech Used ----------------- None Achievements -------------- None Challenges ------------ None Game ------ Seed DynamicMassLance Manual? 0 Play Time 00:17:06 Cumulative 111.2 hours Start 2024.10.01 @ 18:08:59 End 2024.10.04 @ 23:25:36 Sessions 3 Manual Loads 0 Difficulty Rogue Special Mode None Game No. 171 Rogue 167 Adventurer 4 Explorer 0 Win Type - Total 0 Types 0/0/0/0/0/0/0/0/0 Lore% 51 Gallery% 58 Achievement% 42 Wizard Run 0 Options --------- Layout 2 ASCII 0 Keyboard 0 Movement Mouse Keybinds 0 Fullscreen 2 Font 24/Smallcaps Map View 50x44 Zoom Use 0% Tactical HUD 1 Map Filters NONE Filters NONE Steam 1 RUN: bdbcbbec-569e-4d15-8c40-d095a0d73a3d